bitfinex-derivatives/quotes_BNBF0:USTF0_20251203
["timestamp","ask_amount","ask_price","bid_price","bid_amount"]
[1764790263487,1.09768773,905.32,904.52,1.409]
[1764790264088,1.09768773,905.33,904.52,1.409]
[1764790265085,1.09768773,905.34,904.52,1.409]
[1764790267088,1.09768773,905.35,904.52,1.409]
[1764790268090,1.09768773,905.36,904.52,1.409]
[1764790270086,1.09768773,905.37,904.52,1.409]
[1764790271093,1.09768773,905.38,904.52,1.409]
[1764790272988,1.09768773,905.38,904.48,1.225]
[1764790273188,1.09768773,905.39,904.48,1.225]
[1764790275193,1.09768773,905.4,904.48,1.225]
[1764790275494,1.09768773,905.36,904.48,1.225]
[1764790275693,1.09768773,905.29,904.48,1.225]
[1764790276193,1.09768773,905.3,904.48,1.225]
[1764790276995,1.09768773,905.3,904.49,1.483]
[1764790277192,1.09768773,905.31,904.49,1.483]
[1764790277895,1.09768773,905.23,904.49,1.483]
[1764790278296,1.09768773,905.24,904.49,1.483]
[1764790278491,4.99549011,905.27,904.49,1.483]
[1764790286401,6.09317784,905.27,904.49,1.483]
[1764790287099,4.99549011,905.27,904.49,1.483]
[1764790290905,1.09768773,905.26,904.49,1.483]
[1764790291105,6.09317784,905.27,904.49,1.483]
[1764790291407,1.09768773,905.23,904.49,1.483]
[1764790291801,1.09768773,905.2,904.49,1.483]
[1764790295604,1.09768773,905.21,904.49,1.483]
[1764790296904,1.09768773,905.2,904.49,1.483]
[1764790301914,1.09768773,905.22,904.49,1.483]
[1764790302312,1.09768773,905.21,904.49,1.483]
[1764790302816,1.09768773,905.22,904.49,1.483]
[1764790303315,1.09768773,905.21,904.49,1.483]
[1764790304612,1.09768773,905.2,904.49,1.483]
[1764790306318,4.99549011,905.27,904.49,1.483]
[1764790306319,1.09768773,905.19,904.49,1.483]
[1764790307413,4.99549011,905.27,904.49,1.483]
[1764790312119,6.09317784,905.27,904.49,1.483]
[1764790313225,4.99549011,905.27,904.49,1.483]
[1764790320828,6.09317784,905.27,904.49,1.483]
[1764790321133,1.09768773,905.25,904.49,1.483]
[1764790322133,1.09768773,905.24,904.49,1.483]
[1764790324033,4.99549011,905.27,904.49,1.483]
[1764790326731,1.09768773,905.4,904.49,1.483]
[1764790326937,1.09768773,905.47,904.49,1.483]
[1764790327137,0.19214842,906.07,904.49,1.483]
[1764790327138,1.09768773,905.49,904.49,1.483]
[1764790327434,1.09768773,905.5,904.49,1.483]
[1764790328038,1.09768773,905.54,904.49,2.30739488]
[1764790328337,1.09768773,905.63,904.56,0.82439488]
[1764790328533,1.09768773,905.76,904.69,0.82439488]
[1764790329138,1.09768773,905.76,904.68,0.82439488]
[1764790329437,1.09768773,905.79,904.66,0.82439488]
[1764790330238,1.09768773,905.81,904.63,0.82439488]
[1764790331338,1.09768773,905.83,904.61,0.82439488]
[1764790332235,1.09768773,905.85,904.59,0.82439488]
[1764790333238,1.09768773,905.88,904.59,0.82439488]
[1764790333434,0.19214842,906.07,904.49,1.483]
[1764790333435,1.09768773,905.91,904.61,0.82439488]
[1764790334439,1.09768773,905.92,904.59,0.82439488]
[1764790334835,1.09768773,905.91,904.58,0.82439488]
[1764790335134,1.09768773,905.91,904.57,0.82439488]
[1764790335338,1.09768773,905.92,904.56,0.82439488]
[1764790336235,1.09768773,905.94,904.54,0.82439488]
[1764790337343,1.09768773,905.95,904.53,0.82439488]
[1764790338148,1.09768773,905.95,904.52,0.82439488]
[1764790338341,1.09768773,905.96,904.51,0.82439488]
[1764790339143,1.09768773,905.96,904.52,1.417]
[1764790339342,1.09768773,905.97,904.52,9.84243836]
[1764790340442,1.09768773,905.98,904.52,9.84243836]
[1764790341238,1.09768773,905.99,904.52,9.84243836]
[1764790342245,1.09768773,906.0,904.52,9.84243836]
[1764790343238,1.09768773,906.01,904.52,9.84243836]
[1764790344444,1.09768773,906.02,904.52,9.84243836]
[1764790346146,1.09768773,906.03,904.52,9.84243836]
[1764790347242,1.09768773,906.04,904.52,9.84243836]
[1764790349247,1.09768773,906.05,904.52,9.84243836]
[1764790354953,1.09768773,906.06,904.52,9.84243836]
[1764790355147,0.19214842,906.07,904.52,9.84243836]
[1764790358053,0.19214842,906.07,904.52,10.66683324]
[1764790359653,0.19214842,906.07,904.52,9.84243836]
[1764790360053,0.19214842,906.07,904.53,1.166]
[1764790362056,1.28983615,906.07,904.53,1.99039488]
[1764790362256,1.09768773,906.06,904.53,1.166]
[1764790362459,0.19214842,906.07,904.53,1.166]
[1764790362460,1.09768773,906.02,904.53,1.166]
[1764790363157,1.09768773,906.01,904.53,1.166]
[1764790364256,0.19214842,906.07,904.54,1.805]
[1764790364257,1.09768773,906.0,904.54,1.805]
[1764790365164,0.19214842,906.07,904.54,1.805]
[1764790365165,1.09768773,905.99,904.54,1.805]
[1764790366265,1.09768773,905.98,904.54,2.62939488]
[1764790367065,1.09768773,905.97,904.55,0.82439488]
[1764790367368,1.09768773,905.96,904.55,0.82439488]
[1764790368366,1.09768773,905.96,904.56,0.82439488]
[1764790369169,1.09768773,905.95,904.57,0.82439488]
[1764790369367,1.09768773,905.94,904.58,0.82439488]
[1764790370170,1.09768773,905.93,904.59,0.82439488]
[1764790371268,1.09768773,905.92,904.6,0.82439488]
[1764790372069,1.09768773,905.91,904.61,0.82439488]
[1764790373167,1.09768773,905.89,904.63,0.82439488]
[1764790374371,1.09768773,905.88,904.64,0.82439488]
[1764790375270,1.09768773,905.87,904.65,0.82439488]
[1764790376168,1.09768773,905.86,904.66,0.82439488]
[1764790376373,1.09768773,905.92,904.72,0.82439488]
[1764790377173,1.09768773,905.91,904.73,0.82439488]
[1764790378171,1.09768773,905.9,904.74,0.82439488]
[1764790379171,1.09768773,905.88,904.76,0.82439488]
[1764790380975,1.09768773,905.89,904.8,0.82439488]
[1764790381176,1.09768773,906.03,904.97,0.82439488]
[1764790381371,1.09768773,906.04,904.97,0.82439488]
[1764790381773,1.09768773,906.14,905.07,0.82439488]
[1764790382272,1.09768773,906.13,905.08,0.82439488]
[1764790383274,1.09768773,906.1,905.1,0.82439488]
[1764790383478,1.09768773,906.11,905.09,0.82439488]
[1764790384274,1.84561249,906.28,904.54,1.805]
[1764790384275,1.09768773,906.1,905.11,0.82439488]
[1764790384477,1.09768773,906.11,905.1,0.82439488]
[1764790385280,1.09768773,906.09,905.11,0.82439488]
[1764790385579,1.09768773,906.12,905.12,0.82439488]
[1764790386279,1.09768773,906.11,905.13,0.82439488]
[1764790387277,1.09768773,906.1,905.14,0.82439488]
[1764790387479,1.09768773,906.1,904.54,1.805]
[1764790387480,1.09768773,906.11,905.13,0.82439488]
[1764790388378,1.09768773,906.11,905.12,0.82439488]
[1764790389277,1.09768773,906.12,905.11,0.82439488]
[1764790390478,1.09768773,906.13,905.11,0.82439488]
[1764790391282,1.09768773,906.13,905.1,0.82439488]
[1764790391477,1.09768773,906.14,905.1,0.82439488]
[1764790392386,1.09768773,906.14,905.09,0.82439488]
[1764790393486,1.09768773,906.15,905.08,0.82439488]
[1764790394282,1.09768773,906.16,905.08,0.82439488]
[1764790395285,1.09768773,906.16,905.07,0.82439488]
[1764790396590,1.09768773,906.17,905.07,0.82439488]
[1764790397487,1.09768773,906.17,905.06,0.82439488]
[1764790399393,1.09768773,906.18,905.06,0.82439488]
[1764790400394,1.09768773,906.18,905.05,0.82439488]
[1764790403397,1.09768773,906.19,905.05,0.82439488]
[1764790404697,1.09768773,906.1,904.96,0.82439488]
[1764790404995,1.09768773,906.08,904.94,0.82439488]
[1764790405594,1.09768773,906.08,904.95,1.138]
[1764790407193,1.09768773,906.08,904.95,1.96239488]
[1764790408399,1.09768773,906.07,904.95,1.96239488]
[1764790409201,1.09768773,905.98,904.95,1.138]
[1764790410297,1.09768773,905.96,904.95,1.138]
[1764790411302,5.8484097,906.27,904.95,1.138]
[1764790411303,1.09768773,905.97,904.95,1.138]
[1764790412402,1.09768773,905.94,904.95,1.138]
[1764790415709,1.09768773,905.95,904.95,1.138]
[1764790420409,1.09768773,905.94,904.95,1.138]
[1764790423612,1.09768773,905.95,904.95,1.138]
[1764790423812,1.09768773,905.96,904.95,1.138]
[1764790424909,1.09768773,905.97,904.95,1.138]
[1764790426314,1.09768773,905.97,904.96,1.472]
[1764790427511,1.09768773,905.96,904.96,1.472]
[1764790429415,1.09768773,905.95,904.96,1.472]
[1764790431721,1.09768773,906.02,905.02,0.82439488]
[1764790431920,1.09768773,906.04,905.04,0.82439488]
[1764790432220,1.09768773,906.07,905.07,0.82439488]
[1764790433325,1.09768773,906.07,905.08,0.82439488]
[1764790434226,1.09768773,906.06,905.08,0.82439488]
[1764790435226,1.09768773,906.05,905.09,0.82439488]
[1764790435425,1.09768773,906.07,905.1,0.82439488]
[1764790436325,1.09768773,906.06,905.11,0.82439488]
[1764790438328,1.09768773,906.05,905.12,0.82439488]
[1764790439828,1.09768773,906.08,905.15,0.82439488]
[1764790440834,1.09768773,906.08,905.16,0.82439488]
[1764790443334,1.09768773,906.08,905.15,0.82439488]
[1764790444534,1.09768773,906.09,905.16,0.82439488]
[1764790444738,1.09768773,906.08,905.15,0.82439488]
[1764790446235,1.09768773,906.09,905.15,0.82439488]
[1764790448143,1.09768773,906.09,905.16,0.82439488]
[1764790454245,1.09768773,906.1,905.16,0.82439488]
[1764790455242,1.09768773,906.1,905.15,0.82439488]
[1764790467249,1.09768773,906.1,905.16,1.034]
[1764790470553,1.09768773,906.06,905.16,1.034]
[1764790471357,1.09768773,906.05,905.16,1.034]
[1764790472759,1.65349271,906.22,905.16,1.034]
[1764790473156,1.65349271,906.22,905.17,1.651]
[1764790473460,5.8484097,906.27,905.17,1.651]
[1764790473761,1.10448644,906.26,905.17,1.651]
[1764790473960,1.10448644,906.25,905.17,1.651]
[1764790474159,5.8484097,906.27,905.17,1.651]
[1764790474360,1.10448644,906.26,905.17,1.651]
[1764790474660,1.10448644,906.25,905.17,1.651]
[1764790474859,5.8484097,906.27,905.17,1.651]
[1764790475060,1.10448644,906.26,905.17,1.651]
[1764790475362,1.10448644,906.25,905.17,1.651]
[1764790475560,5.8484097,906.27,905.17,1.651]
[1764790475757,1.10113203,906.03,905.17,1.651]
[1764790476367,1.10113203,906.0,905.17,1.651]
[1764790476561,1.10113203,905.94,905.17,1.651]
[1764790476761,1.10113203,905.93,905.17,1.651]
[1764790477255,1.10113203,905.84,905.17,1.651]
[1764790478872,1.10113203,905.82,905.17,1.651]
[1764790479363,1.10113203,905.83,905.17,1.651]
[1764790483466,1.10113203,905.82,905.17,1.651]
[1764790486462,1.10113203,905.83,905.17,1.651]
[1764790488565,1.10113203,905.83,905.18,1.536]
[1764790490164,1.10113203,905.84,905.18,1.536]
[1764790492366,1.10113203,905.86,905.18,1.536]
[1764790496269,1.10113203,905.87,905.18,1.536]
[1764790496977,1.10113203,905.86,905.18,1.536]
[1764790501380,1.10113203,905.87,905.18,1.536]
[1764790505782,1.10113203,905.85,905.18,1.536]
[1764790506078,1.10113203,905.83,905.18,1.536]
[1764790507283,1.10113203,905.84,905.18,1.536]
[1764790508681,1.10113203,905.84,905.17,1.651]
[1764790509087,1.10113203,905.84,904.93,8.50035261]
[1764790509688,1.10113203,905.76,904.93,8.50035261]
[1764790509888,1.10113203,905.7,904.93,8.50035261]
[1764790510289,1.10113203,905.71,904.93,8.50035261]
[1764790510785,1.10113203,905.71,904.94,1.377]
[1764790511186,1.10113203,905.63,904.94,1.377]
[1764790511386,1.10113203,905.64,904.94,1.377]
[1764790512385,1.10113203,905.65,904.95,1.545]
[1764790512591,1.10113203,905.66,904.95,1.545]
[1764790513288,1.10113203,905.67,904.95,1.545]
[1764790516494,1.10113203,905.68,904.95,1.545]
[1764790518295,1.10113203,905.69,904.95,1.545]
[1764790519796,1.10113203,905.75,904.95,1.545]
[1764790521194,1.10113203,905.74,904.95,1.545]
[1764790523901,1.10113203,905.76,904.95,1.545]
[1764790524202,1.10113203,905.79,904.95,1.545]
[1764790524403,1.10113203,905.82,904.95,1.545]
[1764790525304,1.10113203,905.81,904.95,1.545]
[1764790525503,1.10113203,905.82,904.95,1.545]
[1764790526499,1.10113203,905.85,904.95,1.545]
[1764790526699,1.10113203,905.91,904.95,1.545]
[1764790527199,1.10113203,905.9,904.95,1.545]
[1764790527403,1.10113203,905.92,904.95,1.545]
[1764790528405,1.10113203,905.91,904.95,1.545]
[1764790529200,1.10113203,905.92,904.96,1.726]
[1764790529405,1.10113203,905.93,904.96,1.726]
[1764790530301,1.10113203,905.92,904.96,1.726]
[1764790534611,1.10113203,905.98,904.99,0.81835832]
[1764790535808,1.65169805,906.14,904.99,0.81835832]
[1764790535809,1.10113203,905.97,904.99,0.81835832]
[1764790536313,1.10113203,905.97,905.0,0.81835832]
[1764790538410,1.10113203,905.98,904.99,0.81835832]
[1764790540115,1.10113203,905.95,904.96,2.54435832]
[1764790542317,1.10113203,905.96,904.96,2.54435832]
[1764790544018,1.10113203,905.94,904.96,1.726]
[1764790544315,1.10113203,905.95,904.96,1.726]
[1764790546821,1.10113203,905.81,904.96,1.726]
[1764790551223,1.10113203,905.81,904.95,1.545]
[1764790551224,1.10113203,905.82,904.95,1.545]
[1764790551523,1.10113203,905.81,904.95,1.545]
[1764790555924,1.10113203,905.79,904.95,1.545]
[1764790556230,1.10113203,905.73,904.95,1.545]
[1764790556430,1.10113203,905.73,904.93,8.50035261]
[1764790557525,1.10113203,905.72,904.93,8.50035261]
[1764790557830,1.10113203,905.7,904.93,8.50035261]
[1764790559234,1.10113203,905.71,904.93,8.50035261]
[1764790561730,5.7454352,906.21,904.93,8.50035261]
[1764790561731,1.10113203,905.73,904.93,8.50035261]
[1764790562230,5.7454352,906.21,904.93,8.50035261]
[1764790562231,1.10113203,905.75,904.93,8.50035261]
[1764790562930,1.10113203,905.73,904.93,8.50035261]
[1764790564334,1.10113203,905.74,904.93,8.50035261]
[1764790564941,1.10113203,905.81,904.93,8.50035261]
[1764790565137,1.10113203,905.8,904.93,8.50035261]
[1764790565336,1.10113203,905.81,904.93,8.50035261]
[1764790567933,1.10113203,905.88,904.93,8.50035261]
[1764790570337,1.10113203,905.89,904.93,8.50035261]
[1764790571241,1.10113203,905.87,904.93,8.50035261]
[1764790572733,1.10113203,905.88,904.93,8.50035261]
[1764790573938,1.10113203,905.86,904.93,8.50035261]
[1764790576236,1.10113203,905.85,904.93,8.50035261]
[1764790578344,1.10113203,905.84,904.93,8.50035261]
[1764790579346,1.10113203,905.83,904.93,8.50035261]
[1764790582448,1.10113203,905.82,904.93,8.50035261]
[1764790584849,1.10113203,905.82,904.94,1.808]
[1764790591551,1.10113203,905.81,904.94,1.808]
[1764790598257,1.10113203,905.8,904.94,1.808]
[1764790598574,1.10113203,905.8,904.94,2.62702476]
[1764790601263,1.10113203,905.79,904.94,2.62702476]
[1764790601463,1.10113203,905.79,904.95,0.81902476]
[1764790605266,1.10113203,905.78,904.96,2.09302476]
[1764790609870,5.7454352,906.21,904.96,2.09302476]
[1764790609871,1.10113203,905.79,904.97,0.81902476]
[1764790611676,1.10113203,905.8,904.97,0.81902476]
[1764790612376,1.10113203,905.8,904.96,1.274]
[1764790612377,1.10113203,905.79,904.96,2.09302476]
[1764790616384,1.10113203,905.78,904.96,2.09302476]
[1764790616785,1.10113203,905.78,904.97,1.721]
[1764790617286,1.10113203,905.78,904.97,2.54002476]
[1764790618290,1.10113203,905.77,904.97,2.54002476]
[1764790619291,1.10113203,905.77,904.98,0.81902476]
[1764790620995,1.10113203,905.76,904.99,0.81902476]
[1764790621489,1.10113203,905.75,904.99,0.81902476]
[1764790622394,1.10113203,905.75,905.0,0.81902476]
[1764790623489,1.10113203,905.75,904.97,1.721]
[1764790623490,1.10113203,905.74,905.01,0.81902476]
[1764790624395,1.10113203,905.73,905.02,0.81902476]
[1764790624591,1.10113203,905.73,905.02,2.40902476]
[1764790625290,1.10113203,905.72,905.02,2.40902476]
[1764790626299,1.10113203,905.71,905.03,0.81902476]
[1764790626698,1.10113203,905.7,905.02,2.40902476]
[1764790626894,1.10113203,905.64,905.02,1.59]
[1764790628297,1.10113203,905.65,905.02,1.59]
[1764790630403,1.10113203,905.66,905.02,1.59]
[1764790632304,1.10113203,905.67,905.02,1.59]
[1764790635506,1.10113203,905.64,905.02,1.59]
[1764790635701,1.10113203,905.64,904.97,1.721]
[1764790636003,1.10113203,905.64,904.91,0.81902476]
[1764790636405,1.10113203,905.65,904.91,0.81902476]
[1764790637307,1.10113203,905.65,904.9,0.81902476]
[1764790637507,1.10113203,905.65,904.92,1.891]
[1764790638108,1.10113203,905.59,904.92,1.891]
[1764790638302,1.10113203,905.6,904.92,1.891]
[1764790638904,1.10113203,905.6,904.93,1.82]
[1764790639506,1.10113203,905.61,904.93,1.82]
[1764790641206,1.10113203,905.62,904.93,1.82]
[1764790644211,1.10113203,905.63,904.93,1.82]
[1764790644608,1.10113203,905.64,904.93,1.82]
[1764790645309,1.10113203,905.78,904.95,0.81902476]
[1764790646406,1.10113203,905.8,904.98,0.81902476]
[1764790647110,1.10113203,905.86,905.04,0.81902476]
[1764790647309,1.10113203,905.87,905.04,0.81902476]
[1764790647513,1.10113203,905.9,905.07,0.81902476]
[1764790647916,1.10113203,905.91,905.07,0.81902476]
[1764790648214,1.10113203,905.92,905.08,0.81902476]
[1764790648513,1.10113203,905.92,905.07,0.81902476]
[1764790648714,1.10113203,905.93,905.09,0.81902476]
[1764790649315,1.10113203,905.93,905.08,0.81902476]
[1764790650216,1.10113203,905.94,905.08,0.81902476]
[1764790651417,1.10113203,905.94,905.07,0.81902476]
[1764790652017,1.10113203,905.96,905.08,0.81902476]
[1764790652317,1.10113203,905.96,904.93,1.82]
[1764790652318,1.10113203,905.95,905.07,0.81902476]
[1764790653318,1.10113203,905.95,905.06,0.81902476]
[1764790654219,1.10113203,905.95,904.93,1.82]
[1764790654415,1.10113203,905.96,905.06,0.82023645]
[1764790656417,1.10113203,905.96,905.05,0.82023645]
[1764790657315,1.10113203,905.97,905.05,0.82023645]
[1764790659421,1.10113203,905.97,905.04,0.82023645]
[1764790659621,1.10113203,905.96,905.03,0.82023645]
[1764790662419,1.10113203,905.97,905.03,0.82023645]
[1764790663319,1.10113203,905.97,905.02,0.82023645]
[1764790667024,1.10113203,905.98,905.03,0.82023645]
[1764790667230,1.10113203,905.98,905.02,0.82023645]
[1764790667524,1.10113203,905.98,905.03,1.54]
[1764790669432,1.10113203,905.99,905.03,1.54]
[1764790677331,1.10113203,906.0,905.03,1.54]
[1764790677931,1.10113203,905.98,905.03,1.54]
[1764790678637,1.10113203,905.96,905.03,1.54]
[1764790678833,1.10113203,905.86,905.03,1.54]
[1764790682834,1.10113203,905.8,905.03,1.54]
[1764790685840,1.10113203,905.79,905.03,1.54]
[1764790686241,1.10113203,905.77,905.03,1.54]
[1764790686838,1.10113203,905.71,905.03,1.54]
[1764790687039,1.10113203,905.71,905.04,1.615]
[1764790687342,1.10113203,905.72,905.04,1.615]
[1764790688240,1.10113203,905.7,905.04,1.615]
[1764790688838,1.10113203,905.65,905.04,1.615]
[1764790689043,1.10113203,905.63,905.04,1.615]
[1764790689640,1.10113203,905.57,905.05,1.228]
[1764790689845,1.10113203,905.54,905.05,1.228]
[1764790690045,1.10113203,905.53,905.05,1.228]
[1764790690541,1.10113203,905.54,905.05,1.228]
[1764790691442,1.10113203,905.55,905.05,1.228]
[1764790692342,1.10113203,905.46,905.05,1.228]
[1764790692647,1.10113203,905.44,905.05,1.228]
[1764790692943,5.37314752,906.28,905.05,1.228]
[1764790692944,1.10113203,905.43,905.05,1.228]
[1764790693349,1.10113203,905.4,905.05,1.228]
[1764790693950,1.10113203,905.36,905.05,1.228]
[1764790694150,1.10113203,905.35,905.05,1.228]
[1764790694345,1.10113203,905.38,905.05,1.228]
[1764790694550,1.10113203,905.34,905.05,1.228]
[1764790694749,1.10113203,905.33,905.05,1.228]
[1764790694949,1.10113203,905.26,905.05,1.228]
[1764790695446,1.10113203,905.31,905.05,1.228]
[1764790696350,1.10113203,905.33,905.05,1.228]
[1764790697246,1.10113203,905.34,905.05,1.228]
[1764790697447,1.10113203,905.36,905.05,1.228]
[1764790698247,1.10113203,905.33,905.05,1.228]
[1764790698448,1.10113203,905.32,905.05,1.228]
[1764790698948,1.10113203,905.31,905.05,1.228]
[1764790699454,1.10113203,905.33,905.05,1.228]
[1764790699654,1.10113203,905.27,905.05,1.228]
[1764790700350,1.10113203,905.26,905.05,1.228]
[1764790700655,1.10113203,905.17,905.05,1.228]
[1764790700859,1.10113203,905.08,905.05,1.228]
[1764790701356,1.10113203,905.11,905.05,1.228]
[1764790702255,1.10113203,905.12,905.05,1.228]
[1764790702552,1.65169805,905.28,905.05,1.228]
[1764790702553,1.10113203,905.14,905.05,1.228]
[1764790702751,1.10113203,905.16,905.05,1.228]
[1764790703151,1.10113203,905.16,904.04,0.19227529]
[1764790703352,1.10113203,905.18,904.04,0.19227529]
[1764790703961,1.10113203,905.18,904.05,1.853]
[1764790704458,1.10113203,905.2,904.05,1.853]
[1764790705559,1.10113203,905.19,904.05,1.853]
[1764790706260,1.10113203,905.21,904.05,1.853]
[1764790706457,1.10113203,905.2,904.05,1.853]
[1764790706657,1.10113203,905.0,904.05,1.853]
[1764790706859,1.10113203,904.96,904.05,1.853]
[1764790707463,1.10113203,904.98,904.05,1.853]
[1764790708265,1.10113203,905.0,904.05,1.853]
[1764790708567,1.10113203,904.96,904.05,1.853]
[1764790708766,1.10113203,904.93,904.05,1.853]
[1764790709260,1.10113203,904.95,904.05,1.853]
[1764790709561,1.10113203,904.97,904.05,1.853]
[1764790710365,1.10113203,904.99,904.05,1.853]
[1764790710766,2.75283008,905.8,904.05,1.853]
[1764790710767,1.10113203,904.98,904.05,1.853]
[1764790711462,1.10113203,905.0,904.05,1.853]
[1764790712364,1.10113203,905.02,904.05,1.853]
[1764790713362,1.10113203,905.04,904.05,1.853]
[1764790714265,1.10113203,905.07,904.05,1.853]
[1764790714467,1.10113203,905.08,904.05,1.853]
[1764790714867,1.10113203,905.16,904.05,1.853]
[1764790715266,1.10113203,905.18,904.05,1.853]
[1764790716068,1.10113203,905.15,904.05,1.853]
[1764790716371,3.85396212,906.32,904.05,1.853]
[1764790716372,1.10113203,905.16,904.05,1.853]
[1764790716567,1.10113203,905.21,904.05,1.853]
[1764790717272,1.10113203,905.24,904.05,1.853]
[1764790717470,1.10113203,905.29,904.05,1.853]
[1764790717675,1.10113203,905.28,904.05,1.853]
[1764790719573,1.10113203,905.29,904.05,1.853]
[1764790720170,1.10113203,905.28,904.05,1.853]
[1764790720470,1.10113203,905.29,904.05,1.853]
[1764790723270,1.10113203,905.28,904.05,1.853]
[1764790724876,1.10113203,905.21,904.05,1.853]
[1764790726074,1.10113203,905.23,904.05,1.853]
[1764790726272,1.10113203,905.3,904.05,1.853]
[1764790728276,1.10113203,905.29,904.05,1.853]
[1764790728977,1.10113203,905.28,904.05,1.853]
[1764790729378,1.10113203,905.27,904.05,1.853]
[1764790729976,1.10113203,905.22,904.05,1.853]
[1764790730176,1.10113203,905.19,904.05,1.853]
[1764790730375,1.10113203,905.18,904.05,1.853]
[1764790731281,1.10113203,905.17,904.05,1.853]
[1764790731481,1.10113203,905.16,904.05,1.853]
[1764790732380,1.10113203,905.15,904.05,1.853]
[1764790733279,2.75283008,905.96,904.05,1.853]
[1764790733280,1.10113203,905.14,904.05,1.853]
[1764790733681,1.10113203,905.08,904.05,1.853]
[1764790734276,1.10113203,905.07,904.05,1.853]
[1764790734774,1.10113203,905.08,904.05,1.853]
[1764790734979,1.10113203,905.09,904.05,1.853]
[1764790735176,1.10113203,905.08,904.05,1.853]
[1764790736280,1.10113203,905.06,904.05,1.853]
[1764790737282,1.10113203,905.04,904.05,1.853]
[1764790738182,1.10113203,905.02,904.05,1.853]
[1764790739388,1.10113203,905.01,904.05,1.853]
[1764790740879,1.10113203,905.0,904.05,1.853]
[1764790741283,1.10113203,904.99,904.05,1.853]
[1764790741885,1.10113203,905.0,904.05,1.853]
[1764790742287,1.10113203,904.98,904.05,1.853]
[1764790742984,1.10113203,904.98,903.72,1.204]
[1764790743486,1.10113203,904.96,903.72,1.204]
[1764790743883,1.10113203,905.16,903.72,1.204]
[1764790744186,1.10113203,905.17,903.72,1.204]
[1764790744387,1.10113203,905.15,903.72,1.204]
[1764790744883,1.10113203,905.21,903.72,1.204]
[1764790745388,1.10113203,905.19,903.72,1.204]
[1764790745888,1.10113203,905.2,903.72,1.204]
[1764790746185,1.10113203,905.21,903.72,1.204]
[1764790746485,1.10113203,905.19,903.72,1.204]
[1764790746787,1.10113203,905.2,903.72,1.204]
[1764790746985,1.10113203,905.2,903.73,1.706]
[1764790747284,2.75283008,906.01,903.73,1.706]
[1764790747285,1.10113203,905.18,903.73,1.706]
[1764790748190,1.10113203,905.17,903.73,1.706]
[1764790748485,1.10113203,905.15,903.73,1.706]
[1764790749390,1.10113203,905.13,903.73,1.706]
[1764790750187,1.10113203,905.12,903.73,1.706]
[1764790750387,1.10113203,905.1,903.73,1.706]
[1764790751391,1.10113203,905.08,903.73,1.706]
[1764790752097,1.10113203,905.07,903.73,1.706]
[1764790752298,1.10113203,905.05,903.74,1.38]
[1764790753295,1.10113203,905.03,903.74,1.38]
[1764790754399,1.10113203,905.01,903.74,1.38]
[1764790755500,1.10113203,905.0,903.74,1.38]
[1764790756401,1.10113203,904.99,903.74,1.38]
[1764790757303,1.10113203,904.98,903.74,1.38]
[1764790758498,1.10113203,904.97,903.74,1.38]
[1764790759406,1.10113203,904.96,903.74,1.38]
[1764790765309,1.10113203,904.97,903.74,1.38]
[1764790769413,1.10113203,904.96,903.74,1.38]
[1764790770317,1.10113203,904.95,903.74,1.38]
[1764790772311,1.10113203,904.94,903.74,1.09545645]
[1764790773318,1.10113203,904.93,903.75,1.09545645]
[1764790774016,1.10113203,905.04,903.85,1.09545645]
[1764790774415,1.10113203,905.03,903.86,1.09545645]
[1764790774614,1.10113203,905.05,903.87,1.09545645]
[1764790774816,1.10113203,905.22,904.05,1.09545645]
[1764790775013,1.10113203,905.21,904.04,1.09545645]
[1764790775218,3.85396212,906.35,903.86,1.659]
[1764790775219,1.10113203,905.23,904.02,1.09545645]
[1764790775418,1.10113203,905.22,904.03,1.09545645]
[1764790775917,1.10113203,905.23,904.03,1.09545645]
[1764790776118,1.10113203,905.24,904.18,0.82067984]
[1764790776517,1.10113203,905.24,904.19,0.82067984]
[1764790777119,1.10113203,905.25,904.18,0.82067984]
[1764790778219,1.10113203,905.26,904.17,0.82067984]
[1764790779220,1.10113203,905.27,904.16,0.82067984]
[1764790780119,1.10113203,905.27,904.15,0.82067984]
[1764790781125,1.10113203,905.28,904.14,0.82067984]